fUSD/lending_fUSD_20250823
["ID","MTS","AMOUNT","RATE_DAILY","PERIOD"]
[381015183,1755947111803,172.0,0.00025726,120]
[381015184,1755947113133,172.0,0.00027012,120]
[381015185,1755947114514,172.0,0.00028363,120]
[381015187,1755947368512,-222.0,0.000112,2]
[381015188,1755947368535,-2500.0,0.00011522,2]
[381015189,1755947368558,-680.96,0.00011762,2]
[381015190,1755947368579,-250.0,0.00011787,2]
[381015191,1755947368600,-3991.36068687,0.00011844,2]
[381015192,1755947368621,-150.0,0.00011992,2]
[381015193,1755947368644,-1200.0,0.00011997,2]
[381015194,1755947368666,-150.0,0.00011998,2]
[381015195,1755947368687,-5855.67931313,0.00011999,2]
[381015196,1755947373096,-15000.0,0.00011999,2]
[381015197,1755947374552,-15000.0,0.00011999,2]
[381015198,1755947379715,-10000.0,0.00011999,2]
[381015199,1755947408223,173.0,0.00024446,120]
[381015200,1755947409275,173.0,0.00025668,120]
[381015201,1755947410755,173.0,0.00026952,120]
[381015202,1755947411968,173.0,0.00028299,120]
[381015205,1755947431960,-387.76,0.00011938,2]
[381015206,1755947431971,-1200.0,0.00011998,2]
[381015207,1755947431981,-300.0,0.00011998,2]
[381015208,1755947431992,-2500.0,0.00011998,2]
[381015209,1755947432001,-289.54054036,0.00011999,2]
[381015210,1755947432011,-1612.32,0.00011999,2]
[381015211,1755947432021,-1612.32,0.00011999,2]
[381015212,1755947432031,-1612.32,0.00011999,2]
[381015213,1755947432040,-1612.32,0.00011999,2]
[381015214,1755947432050,-1612.32,0.00011999,2]
[381015215,1755947432059,-1612.32,0.00011999,2]
[381015216,1755947432069,-1612.32,0.00011999,2]
[381015217,1755947432078,-1612.32,0.00011999,2]
[381015218,1755947432088,-1612.32,0.00011999,2]
[381015219,1755947432098,-1612.32,0.00011999,2]
[381015220,1755947432107,-1612.32,0.00011999,2]
[381015221,1755947432117,-1612.32,0.00011999,2]
[381015222,1755947432126,-1612.32,0.00011999,2]
[381015223,1755947432136,-1612.32,0.00011999,2]
[381015224,1755947432146,-1612.32,0.00011999,2]
[381015225,1755947432156,-1612.32,0.00011999,2]
[381015226,1755947432166,-1612.32,0.00011999,2]
[381015227,1755947432175,-1612.32,0.00011999,2]
[381015228,1755947432185,-1612.32,0.00011999,2]
[381015229,1755947432194,-1612.32,0.00011999,2]
[381015230,1755947432204,-1612.32,0.00011999,2]
[381015232,1755947432214,-1612.32,0.00011999,2]
[381015234,1755947432226,-1612.32,0.00011999,2]
[381015236,1755947432235,-1612.32783378,0.00011999,2]
[381015237,1755947432245,-299.99,0.00012087,2]
[381015238,1755947432255,-991.16,0.00012087,2]
[381015239,1755947432265,-8261.81,0.00012087,2]
[381015240,1755947432275,-191.03,0.00012092,2]
[381015241,1755947432284,-500.0,0.00012193,2]
[381015242,1755947432294,-386.03791284,0.00012199,2]
[381015243,1755947432303,-14944.26927122,0.000122,2]
[381015244,1755947432446,-1367.28,0.000122,2]
[381015275,1755947436296,-313.1945887,0.000122,2]
[381015285,1755947436432,-325.94960001,0.000122,2]
[381015287,1755947436444,-92776.68703407,0.000122,2]
[381015289,1755947436455,-500.0,0.00012248,2]
[381015290,1755947436469,-517.0540794,0.00012303,2]
[381015292,1755947436479,-303.67,0.00012309,2]
[381015294,1755947436490,-2500.0,0.0001232,2]
[381015297,1755947436499,-2500.0,0.0001232,2]
[381015299,1755947436510,-218.0,0.0001238,2]
[381015301,1755947436520,-304.77,0.00012456,2]
[381015303,1755947436529,-210.75,0.00012463,2]
[381015305,1755947436540,-224.6,0.00012467,2]
[381015307,1755947436549,-947.83,0.00012732,2]
[381015309,1755947436559,-799.21,0.00012736,2]
[381015311,1755947436568,-304.11,0.00012754,2]
[381015313,1755947436577,-19999.99,0.00012893,2]
[381015315,1755947436586,-2597.73,0.00012893,2]
[381015317,1755947436597,-151.0,0.00012946,2]
[381015319,1755947436606,-721.12765535,0.00012946,2]
[381015321,1755947436616,-1000.0,0.00012946,2]
[381015323,1755947436626,-5391.81600769,0.00012946,2]
[381015324,1755947436636,-1000.0,0.00012946,2]
[381015325,1755947436646,-1000.0,0.00012946,2]
[381015326,1755947436655,-1000.0,0.00012946,2]
[381015327,1755947436665,-1000.0,0.00012946,2]
[381015328,1755947436675,-160.0,0.00012946,2]
[381015329,1755947436684,-1000.0,0.00012946,2]
[381015330,1755947436694,-403.80856663,0.00012946,2]
[381015331,1755947436703,-1000.0,0.00012946,2]
[381015332,1755947436713,-1000.0,0.00012946,2]
[381015334,1755947436722,-1000.0,0.00012946,2]
[381015337,1755947436733,-1000.0,0.00012946,2]
[381015339,1755947436743,-1000.0,0.00012946,2]
[381015341,1755947436752,-1000.0,0.00012946,2]
[381015343,1755947436761,-1000.0,0.00012946,2]
[381015345,1755947436771,-1000.0,0.00012946,2]
[381015347,1755947436780,-1000.0,0.00012946,2]
[381015348,1755947436790,-1000.0,0.00012946,2]
[381015349,1755947436799,-1000.0,0.00012946,2]
[381015350,1755947436809,-151.0,0.00012946,2]
[381015352,1755947436818,-277.35679052,0.00012946,2]
[381015354,1755947436828,-151.0,0.00012946,2]
[381015356,1755947436837,-322.6107,0.00012946,2]
[381015358,1755947436847,-156.587,0.00013001,2]
[381015360,1755947436856,-5591.31319997,0.00013001,2]
[381015361,1755947436866,-162.380719,0.00013056,2]
[381015362,1755947436875,-5798.19178837,0.00013056,2]
[381015363,1755947436885,-255.0,0.00013078,2]
[381015364,1755947436895,-168.3888056,0.00013111,2]
[381015365,1755947436905,-6012.72488454,0.00013111,2]
[381015366,1755947436914,-1354.0,0.00013162,2]
[381015367,1755947436923,-174.61919141,0.00013166,2]
[381015368,1755947436932,-6235.19570527,0.00013166,2]
[381015369,1755947436941,-420.0,0.00013171,2]
[381015370,1755947436950,-925.0,0.00013185,2]
[381015371,1755947436959,-3373.0,0.00013185,2]
[381015372,1755947436969,-2030.0,0.00013185,2]
[381015373,1755947436979,-1255.0,0.00013185,2]
[381015374,1755947436988,-566.0,0.00013185,2]
[381015375,1755947436997,-1657.0,0.00013185,2]
[381015376,1755947437326,-599.0,0.00013185,2]
[381015377,1755947437344,-1298.0,0.00013185,2]
[381015378,1755947437353,-500.0,0.00013198,2]
[381015379,1755947437363,-2500.0,0.00013198,2]
[381015380,1755947437373,-1680.0,0.00013198,2]
[381015381,1755947437382,-241.0,0.00013204,2]
[381015382,1755947437392,-181.08010149,0.00013221,2]
[381015383,1755947437403,-6465.89794637,0.00013221,2]
[381015384,1755947437412,-24233.777858,0.0001323,2]
[381015385,1755947437421,-8232.72196632,0.0001323,2]
[381015386,1755947437434,-823.46688821,0.0001323,2]
[381015387,1755947437468,-1323.4572837,0.0001323,2]
[381015401,1755947438262,-979.68276412,0.0001323,2]
[381015408,1755947438317,-476.3,0.0001323,2]
[381015414,1755947439798,-13180.29424075,0.0001323,2]
[381015415,1755947439808,-680.96,0.00013233,2]
[381015416,1755947439818,-880.81066434,0.00013246,2]
[381015417,1755947439828,-187.78006525,0.00013276,2]
[381015418,1755947439838,-6705.13617038,0.00013276,2]
[381015419,1755947439847,-6093.0,0.00013285,2]
[381015420,1755947439857,-4153.0,0.00013285,2]
[381015421,1755947439868,-718.0,0.00013285,2]
[381015422,1755947439878,-21510.0,0.00013285,2]
[381015423,1755947439888,-212.10093811,0.00013316,2]
[381015424,1755947439900,-160.0,0.00013316,2]
[381015425,1755947439910,-844.27675029,0.00013319,2]
[381015426,1755947439919,-194.72792766,0.00013331,2]
[381015427,1755947439929,-6953.22620868,0.00013331,2]
[381015428,1755947439939,-201.93286099,0.00013386,2]
[381015429,1755947439949,-7210.49557841,0.00013386,2]
[381015430,1755947439959,-1000.0,0.000134,2]
[381015431,1755947439969,-1000.0,0.000134,2]
[381015432,1755947439978,-1000.0,0.000134,2]
[381015433,1755947439987,-1802.57699074,0.00013424,2]
[381015434,1755947439999,-150.93,0.00013425,2]
[381015435,1755947440010,-209.40437684,0.00013441,2]
[381015436,1755947440019,-7477.28391481,0.00013441,2]
[381015437,1755947440029,-151.0,0.00013494,2]
[381015438,1755947440038,-151.0,0.00013494,2]
[381015439,1755947440048,-217.15233878,0.00013496,2]
[381015440,1755947440057,-7753.94341966,0.00013496,2]
[381015442,1755947440067,-1565.0,0.000135,2]
[381015444,1755947440077,-1000.0,0.000135,2]
[381015446,1755947440086,-5800.0,0.0001352,2]
[381015449,1755947440096,-286.14,0.00013523,2]
[381015451,1755947440106,-5800.0,0.00013529,2]
[381015453,1755947440116,-5800.0,0.00013537,2]
[381015455,1755947440125,-225.18697532,0.00013551,2]
[381015457,1755947440135,-2707.662,0.00013564,2]
[381015459,1755947440144,-184.22,0.00013564,2]
[381015461,1755947440154,-466.0,0.00013564,2]
[381015463,1755947440164,-500.0,0.00013564,2]
[381015465,1755947440173,-1250.0,0.00013564,2]
[381015467,1755947440183,-150.0,0.00013564,2]
[381015469,1755947440192,-150.0,0.00013564,2]
[381015471,1755947440201,-214.94581657,0.00013564,2]
[381015473,1755947440211,-500.0,0.00013564,2]
[381015475,1755947440220,-150.0,0.00013564,2]
[381015477,1755947440230,-824.0,0.00013564,2]
[381015479,1755947440240,-150.0,0.00013564,2]
[381015481,1755947440250,-200.0,0.00013564,2]
[381015484,1755947440264,-150.0,0.00013564,2]
[381015486,1755947440274,-150.0,0.00013564,2]
[381015487,1755947440284,-500.0,0.00013564,2]
[381015488,1755947440295,-150.0,0.00013564,2]
[381015489,1755947440304,-213.0,0.0001357,2]
[381015490,1755947440314,-200.0,0.00013588,2]
[381015491,1755947440325,-170.00674333,0.0001359,2]
[381015492,1755947440334,-264.02320651,0.00013598,2]
[381015493,1755947440344,-631.25427716,0.00013598,2]
[381015494,1755947440355,-1000.0,0.00013598,2]
[381015495,1755947440364,-5000.0,0.00013598,2]
[381015496,1755947440374,-150.0,0.000136,2]
[381015497,1755947440383,-150.0,0.000136,2]
[381015498,1755947440394,-200.0,0.000136,2]
[381015499,1755947440404,-1000.0,0.000136,2]
[381015500,1755947440414,-233.51889341,0.00013606,2]
[381015501,1755947440424,-500.0,0.00013654,2]
[381015502,1755947440434,-242.15909246,0.00013661,2]
[381015503,1755947440444,-300.0,0.00013667,2]
[381015504,1755947440455,-2774.74512954,0.00013668,2]
[381015505,1755947440466,-174.77204998,0.00013668,2]
[381015506,1755947440486,-158.20729317,0.00013668,2]
[381015507,1755947440504,-152.0,0.00013668,2]
[381015508,1755947440514,-152.0,0.00013668,2]
[381015509,1755947440525,-152.0,0.00013668,2]
[381015510,1755947440534,-152.0,0.00013668,2]
[381015511,1755947440545,-152.0,0.00013668,2]
[381015512,1755947440555,-152.0,0.00013668,2]
[381015513,1755947440566,-152.0,0.00013668,2]
[381015514,1755947440576,-152.0,0.00013668,2]
[381015515,1755947440586,-152.0,0.00013668,2]
[381015516,1755947440596,-152.0,0.00013668,2]
[381015517,1755947440606,-152.0,0.00013668,2]
[381015518,1755947440616,-152.0,0.00013668,2]
[381015519,1755947440626,-152.0,0.00013668,2]
[381015520,1755947440636,-152.0,0.00013668,2]
[381015521,1755947440645,-152.0,0.00013668,2]
[381015522,1755947440655,-152.0,0.00013668,2]
[381015523,1755947440665,-152.0,0.00013668,2]
[381015524,1755947440675,-6418.7911252,0.00013688,2]
[381015525,1755947440684,-1035.41362759,0.00013688,2]
[381015526,1755947440695,-2000.0,0.00013689,2]
[381015527,1755947440704,-946.48239577,0.00013689,2]
[381015528,1755947440714,-857.55116396,0.0001369,2]
[381015529,1755947440724,-768.61993214,0.00013691,2]
[381015530,1755947440734,-679.68870032,0.00013692,2]
[381015531,1755947440743,-590.7574685,0.00013693,2]
[381015532,1755947440753,-501.82623668,0.00013695,2]
[381015533,1755947440763,-412.89500487,0.00013696,2]
[381015534,1755947440773,-2000.0,0.00013697,2]
[381015535,1755947440783,-2000.0,0.00013697,2]
[381015536,1755947440793,-323.96377305,0.00013697,2]
[381015537,1755947440803,-2102.0,0.00013698,2]
[381015538,1755947440813,-4074.28877059,0.00013698,2]
[381015539,1755947440823,-598083.65225656,0.00013698,2]
[381015540,1755947440963,-1148.56376697,0.00013698,2]
[381015544,1755947443026,-540.50248,0.00013668,2]
[381015545,1755947443036,-17601.29798063,0.00013698,2]
[381015546,1755947443046,-1002.49255598,0.00013698,2]
[381015547,1755947443057,-538.96798904,0.00013698,2]
[381015548,1755947443066,-400.0,0.00013698,2]
[381015549,1755947443076,-401.28852087,0.00013698,2]
[381015550,1755947443085,-276.93127765,0.00013698,2]
[381015551,1755947443095,-400.0,0.00013698,2]
[381015552,1755947443104,-401.04082286,0.00013698,2]
[381015553,1755947443114,-401.62607665,0.00013698,2]
[381015554,1755947443123,-152.259471,0.00013698,2]
[381015555,1755947443133,-400.0,0.00013698,2]
[381015556,1755947443142,-400.0,0.00013698,2]
[381015557,1755947443152,-429.98,0.00013698,2]
[381015558,1755947443161,-237.527375,0.00013698,2]
[381015559,1755947443171,-401.83015798,0.00013698,2]
[381015560,1755947443180,-400.0,0.00013698,2]
[381015561,1755947443190,-155.56103,0.00013698,2]
[381015563,1755947443200,-163.636867,0.00013698,2]
[381015564,1755947443209,-407.82,0.00013698,2]
[381015565,1755947443219,-400.0,0.00013698,2]
[381015566,1755947443228,-400.0,0.00013698,2]
[381015567,1755947443238,-400.0,0.00013698,2]
[381015568,1755947443247,-400.0,0.00013698,2]
[381015569,1755947443256,-605.84,0.00013698,2]
[381015570,1755947443265,-400.0,0.00013698,2]
[381015571,1755947443275,-400.0,0.00013698,2]
[381015572,1755947443284,-400.0,0.00013698,2]
[381015573,1755947443294,-400.0,0.00013698,2]
[381015574,1755947443303,-400.0,0.00013698,2]
[381015575,1755947443313,-400.0,0.00013698,2]
[381015577,1755947443324,-400.0,0.00013698,2]
[381015578,1755947443334,-400.0,0.00013698,2]
[381015579,1755947443344,-747.52,0.00013698,2]
[381015580,1755947443354,-402.06374622,0.00013698,2]
[381015581,1755947443364,-437.66411213,0.00013698,2]
[381015582,1755947443373,-268.47917377,0.00013698,2]
[381015583,1755947443427,-131.52082623,0.00013698,2]
[381015584,1755947443436,-213.47917377,0.00013698,2]
[381015585,1755947445805,-1173.0,0.00013408,2]
[381015586,1755947445815,-233.59772827,0.00013464,2]
[381015587,1755947445825,-186.52082623,0.00013698,2]
[381015588,1755947445835,-670.22,0.00013698,2]
[381015589,1755947445844,-400.0,0.00013698,2]
[381015590,1755947445853,-400.0,0.00013698,2]
[381015591,1755947445862,-400.0,0.00013698,2]
[381015592,1755947445874,-400.0,0.00013698,2]
[381015593,1755947445883,-400.0,0.00013698,2]
[381015594,1755947445892,-401.74865601,0.00013698,2]
[381015595,1755947445902,-423.42,0.00013698,2]
[381015596,1755947445913,-484.1,0.00013698,2]
[381015597,1755947445923,-400.0,0.00013698,2]
[381015598,1755947445932,-401.91926645,0.00013698,2]
[381015599,1755947445941,-400.0,0.00013698,2]
[381015600,1755947445951,-501.91,0.00013698,2]
[381015601,1755947445960,-481.76,0.00013698,2]
[381015602,1755947445971,-400.0,0.00013698,2]
[381015603,1755947445980,-224.51713382,0.00013698,2]
[381015604,1755947446039,-454.88286618,0.00013698,2]
[381015605,1755947446048,-458.16,0.00013698,2]
[381015606,1755947446058,-400.0,0.00013698,2]
[381015607,1755947446067,-400.0,0.00013698,2]
[381015608,1755947446077,-400.0,0.00013698,2]
[381015609,1755947446086,-400.0,0.00013698,2]
[381015610,1755947446095,-562.09,0.00013698,2]
[381015611,1755947446105,-400.0,0.00013698,2]
[381015612,1755947446114,-400.34,0.00013698,2]
[381015613,1755947446123,-484.38,0.00013698,2]
[381015614,1755947446132,-400.0,0.00013698,2]
[381015615,1755947446142,-438.24,0.00013698,2]
[381015616,1755947446151,-400.0,0.00013698,2]
[381015617,1755947446161,-400.0,0.00013698,2]
[381015618,1755947446171,-400.0,0.00013698,2]
[381015620,1755947446181,-400.0,0.00013698,2]
[381015621,1755947446190,-536.56,0.00013698,2]
[381015622,1755947446199,-400.0,0.00013698,2]
[381015623,1755947446208,-400.0,0.00013698,2]
[381015624,1755947446217,-400.0,0.00013698,2]
[381015625,1755947446227,-400.0,0.00013698,2]
[381015627,1755947446237,-625.84,0.00013698,2]
[381015629,1755947446247,-400.0,0.00013698,2]
[381015631,1755947446256,-400.0,0.00013698,2]
[381015632,1755947446265,-400.0,0.00013698,2]
[381015633,1755947446274,-511.83,0.00013698,2]
[381015634,1755947446284,-400.0,0.00013698,2]
[381015636,1755947446293,-834.42,0.00013698,2]
[381015638,1755947446303,-400.0,0.00013698,2]
[381015640,1755947446313,-827.29,0.00013698,2]
[381015641,1755947446322,-400.0,0.00013698,2]
[381015642,1755947446331,-595.32,0.00013698,2]
[381015643,1755947446340,-400.0,0.00013698,2]
[381015644,1755947446350,-426.42,0.00013698,2]
[381015645,1755947446360,-400.38168366,0.00013698,2]
[381015646,1755947446369,-400.0,0.00013698,2]
[381015647,1755947446378,-579.27,0.00013698,2]
[381015648,1755947446387,-400.0,0.00013698,2]
[381015649,1755947446398,-422.37,0.00013698,2]
[381015650,1755947446408,-400.0,0.00013698,2]
[381015651,1755947446417,-621.05,0.00013698,2]
[381015652,1755947446427,-400.0,0.00013698,2]
[381015653,1755947446439,-643.92,0.00013698,2]
[381015654,1755947446451,-400.0,0.00013698,2]
[381015655,1755947446460,-400.0,0.00013698,2]
[381015656,1755947446477,-411.94,0.00013698,2]
[381015657,1755947446499,-389.83192814,0.00013698,2]
[381015658,1755947446516,-400.0,0.00013698,2]
[381015659,1755947446526,-400.0,0.00013698,2]
[381015660,1755947446536,-400.0,0.00013698,2]
[381015661,1755947446545,-400.0,0.00013698,2]
[381015662,1755947446555,-167.75552203,0.00013698,2]
[381015663,1755947528202,4029.053668,7.945e-05,2]
[381015664,1755948029672,1404.16999464,0.000287,120]
[381015665,1755948244197,-3000000.0,0.00032202,30]
[381015666,1755948249103,-367163.46797623,0.00032202,30]
[381015667,1755948249128,-817.46473673,0.00032202,30]
[381015668,1755948249158,-6184.1192987,0.00032202,30]
[381015669,1755948249185,-1380.96706001,0.00032202,30]
[381015670,1755948249217,-151.97846969,0.00032202,30]
[381015671,1755948249243,-212.0,0.00032202,30]
[381015672,1755948249267,-212.0,0.00032202,30]
[381015673,1755948249291,-1000.0,0.00032202,30]
[381015674,1755948249317,-1000.0,0.00032202,30]
[381015675,1755948249342,-1000.0,0.00032202,30]
[381015676,1755948249367,-1000.0,0.00032202,30]
[381015677,1755948249392,-1000.0,0.00032202,30]
[381015678,1755948249424,-1000.0,0.00032202,30]
[381015679,1755948249448,-1000.0,0.00032202,30]
[381015680,1755948249473,-1000.0,0.00032202,30]
[381015681,1755948249499,-1000.0,0.00032202,30]
[381015682,1755948249524,-1000.0,0.00032202,30]
[381015683,1755948249548,-1000.0,0.00032202,30]
[381015684,1755948249572,-1000.0,0.00032202,30]
[381015685,1755948249596,-1000.0,0.00032202,30]
[381015686,1755948249620,-1000.0,0.00032202,30]
[381015687,1755948249643,-1000.0,0.00032202,30]
[381015688,1755948249667,-1000.0,0.00032202,30]
[381015689,1755948249690,-1000.0,0.00032202,30]
[381015690,1755948249713,-867.6434569,0.00032202,30]
[381015691,1755948249738,-1000.0,0.00032202,30]
[381015692,1755948249777,-352.01002772,0.00032202,30]
[381015693,1755948249819,-870.88462691,0.00032202,30]
[381015694,1755948249861,-1000.0,0.00032202,30]
[381015695,1755948249905,-919.0,0.00032202,120]
[381015696,1755948249947,-1000.0,0.00032202,60]
[381015697,1755948249982,-1000.0,0.00032202,30]
[381015698,1755948250008,-1762.52,0.00032202,120]
[381015699,1755948250406,-3000.0,0.00032202,120]
[381015700,1755948250433,-1762.52,0.00032202,120]
[381015701,1755948250458,-1762.52,0.00032202,120]
[381015702,1755948250488,-1762.52,0.00032202,120]
[381015703,1755948250531,-1762.52,0.00032202,120]
[381015704,1755948250576,-1762.52,0.00032202,120]
[381015705,1755948250617,-1000.0,0.00032202,120]
[381015706,1755948250665,-1762.52,0.00032202,120]
[381015707,1755948250708,-1762.52,0.00032202,120]
[381015708,1755948250738,-1762.52,0.00032202,120]
[381015709,1755948250768,-1762.52,0.00032202,120]
[381015710,1755948250793,-1762.52,0.00032202,120]
[381015711,1755948250819,-1762.52,0.00032202,120]
[381015712,1755948250845,-1762.52,0.00032202,120]
[381015713,1755948250874,-1762.52,0.00032202,120]
[381015714,1755948250902,-1762.52,0.00032202,120]
[381015715,1755948250931,-1762.52,0.00032202,120]
[381015716,1755948250958,-1762.52,0.00032202,120]
[381015717,1755948250983,-1000.0,0.00032202,30]
[381015718,1755948251010,-1762.52,0.00032202,120]
[381015719,1755948251036,-1762.52,0.00032202,120]
[381015720,1755948251061,-1762.52,0.00032202,120]
[381015721,1755948251087,-1762.52,0.00032202,120]
[381015722,1755948251111,-1762.52,0.00032202,120]
[381015723,1755948251136,-1762.52,0.00032202,120]
[381015724,1755948251161,-1762.75519024,0.00032202,120]
[381015725,1755948251185,-1000.0,0.00032202,30]
[381015726,1755948251217,-1000.0,0.00032202,60]
[381015727,1755948251244,-1000.0,0.00032202,30]
[381015728,1755948251276,-1000.0,0.00032202,30]
[381015729,1755948251304,-166.66666667,0.00032202,120]
[381015730,1755948251337,-1000.0,0.00032202,60]
[381015731,1755948251364,-316.0,0.00032202,60]
[381015732,1755948251395,-1000.0,0.00032202,30]
[381015733,1755948251421,-1000.0,0.00032202,30]
[381015734,1755948251453,-1000.0,0.00032202,60]
[381015735,1755948251478,-1379.0,0.00032202,120]
[381015736,1755948251505,-1000.0,0.00032202,60]
[381015737,1755948251536,-1000.0,0.00032202,60]
[381015738,1755948251562,-1000.0,0.00032202,30]
[381015739,1755948251591,-1000.0,0.00032202,30]
[381015740,1755948251625,-1000.0,0.00032202,90]
[381015741,1755948251655,-843.299999,0.00032202,90]
[381015742,1755948251688,-1000.0,0.00032202,120]
[381015743,1755948251715,-843.299999,0.00032202,120]
[381015744,1755948251748,-1000.0,0.00032202,60]
[381015745,1755948251776,-1000.0,0.00032202,60]
[381015746,1755948251806,-426.4641,0.00032202,60]
[381015747,1755948251830,-1000.0,0.00032202,30]
[381015748,1755948251859,-1000.0,0.00032202,30]
[381015749,1755948251890,-1000.0,0.00032202,60]
[381015750,1755948251918,-1460.0,0.00032202,120]
[381015751,1755948251943,-1000.0,0.00032202,120]
[381015752,1755948251967,-500.0,0.00032202,120]
[381015753,1755948251991,-500.0,0.00032202,120]
[381015754,1755948252018,-500.0,0.00032202,120]
[381015755,1755948252042,-500.0,0.00032202,120]
[381015756,1755948252070,-500.0,0.00032202,120]
[381015757,1755948252095,-500.0,0.00032202,120]
[381015758,1755948252119,-500.0,0.00032202,120]
[381015759,1755948252144,-500.0,0.00032202,120]
[381015760,1755948252168,-500.0,0.00032202,120]
[381015761,1755948252195,-500.0,0.00032202,120]
[381015762,1755948252223,-220.29565702,0.00032202,120]
[381015763,1755948252257,-448.70761712,0.00032202,120]
[381015764,1755948252281,-785.82754603,0.00032202,120]
[381015765,1755948252304,-1948.79558876,0.00032202,30]
[381015766,1755948252328,-382.69128646,0.00032202,30]
[381015767,1755948252353,-900.4889809,0.00032202,90]
[381015768,1755948252377,-317.30688894,0.00032202,120]
[381015769,1755948252401,-525.326028,0.00032202,30]
[381015770,1755948252425,-392.61572785,0.00032202,30]
[381015771,1755948252449,-336.05481731,0.00032202,91]
[381015772,1755948252474,-964.15219969,0.00032202,120]
[381015773,1755948252499,-337.81441326,0.00032202,30]
[381015774,1755948252523,-1463.10272282,0.00032202,30]
[381015775,1755948252547,-362.38027169,0.00032202,30]
[381015776,1755948252572,-900.74043559,0.00032202,30]
[381015777,1755948252596,-1000.0,0.00032202,30]
[381015778,1755948252621,-395.10156392,0.00032202,30]
[381015779,1755948252644,-759.98509444,0.00032202,30]
[381015780,1755948252669,-2960.25405721,0.00032202,30]
[381015781,1755948252692,-1494.76854113,0.00032202,30]
[381015782,1755948252717,-1012.1314065,0.00032202,30]
[381015783,1755948252740,-609.61171114,0.00032202,120]
[381015784,1755948252764,-1199.85110314,0.00032202,30]
[381015785,1755948252788,-5000.0,0.00032202,30]
[381015786,1755948252810,-266.03140555,0.00032202,120]
[381015787,1755948252833,-390.05526103,0.00032202,30]
[381015788,1755948252856,-496.73867161,0.00032202,30]
[381015789,1755948252881,-601.92839318,0.00032202,120]
[381015790,1755948252906,-464.32316257,0.00032202,120]
[381015791,1755948252930,-651.12927929,0.00032202,120]
[381015792,1755948252954,-882.15360153,0.00032202,30]
[381015793,1755948252978,-5000.0,0.00032202,30]
[381015794,1755948253244,-2213.22599518,0.00032202,30]
[381015795,1755948253270,-1228.35650342,0.00032202,120]
[381015796,1755948253293,-890.71711511,0.00032202,30]
[381015797,1755948253320,-305.02189617,0.00032202,120]
[381015798,1755948253344,-953.64121825,0.00032202,30]
[381015799,1755948253368,-377.80154269,0.00032202,90]
[381015800,1755948253395,-1015.34320092,0.00032202,120]
[381015801,1755948253419,-401.57160365,0.00032202,120]
[381015802,1755948253442,-959.42745013,0.00032202,30]
[381015803,1755948253466,-1078.98675054,0.00032202,120]
[381015804,1755948253491,-544.55090914,0.00032202,120]
[381015805,1755948253514,-800.96535844,0.00032202,120]
[381015806,1755948253538,-214.70927155,0.00032202,30]
[381015807,1755948253562,-888.2359778,0.00032202,60]
[381015808,1755948253587,-991.17410033,0.00032202,30]
[381015809,1755948253610,-1600.92744289,0.00032202,120]
[381015810,1755948253635,-185.00619208,0.00032202,120]
[381015811,1755948253658,-865.45127976,0.00032202,30]
[381015812,1755948253682,-516.40576328,0.00032202,120]
[381015813,1755948253705,-2000.0,0.00032202,30]
[381015814,1755948253731,-578.80611979,0.00032202,120]
[381015815,1755948253755,-1043.48611715,0.00032202,30]
[381015816,1755948253779,-362.21926944,0.00032202,30]
[381015817,1755948253803,-479.68176544,0.00032202,120]
[381015818,1755948253826,-256.21344316,0.00032202,120]
[381015819,1755948253851,-734.76359004,0.00032202,120]